fUSD/lending_fUSD_20240615
["ID","MTS","AMOUNT","RATE_DAILY","PERIOD"]
[329578206,1718454676607,-500.0,0.00022739,3]
[329578207,1718454676620,-500.0,0.00022739,3]
[329578208,1718454676635,-500.0,0.00022739,3]
[329578209,1718454676653,-500.0,0.00022739,3]
[329578210,1718454676665,-500.0,0.00022739,3]
[329578211,1718454676686,-617.54,0.00022739,3]
[329578212,1718454676707,-500.0,0.00022739,3]
[329578213,1718454676719,-500.0,0.00022739,3]
[329578214,1718454676732,-500.0,0.00022739,3]
[329578215,1718454676745,-151.0,0.00022739,7]
[329578216,1718454676756,-404.77,0.00022739,3]
[329578217,1718454676780,-484.52171183,0.00022739,3]
[329578218,1718454676798,-500.0,0.00022739,3]
[329578219,1718454676813,-336.92574827,0.00022739,3]
[329578220,1718454676834,-2509.3,0.00022739,3]
[329578221,1718454676864,-151.0,0.00022739,7]
[329578222,1718454676886,-500.0,0.00022739,3]
[329578223,1718454676913,-959.28,0.00022739,3]
[329578224,1718454676936,-184.3,0.00022739,7]
[329578225,1718454676953,-500.0,0.00022739,3]
[329578226,1718454676971,-500.0,0.00022739,3]
[329578227,1718454677000,-543.04,0.00022739,3]
[329578228,1718454677026,-500.0,0.00022739,3]
[329578229,1718454677061,-500.0,0.00022739,3]
[329578230,1718454677075,-500.0,0.00022739,3]
[329578231,1718454677100,-500.0,0.00022739,3]
[329578232,1718454677113,-299.08,0.00022739,3]
[329578233,1718454677125,-151.0,0.00022739,7]
[329578234,1718454677136,-500.0,0.00022739,3]
[329578235,1718454677151,-500.0,0.00022739,3]
[329578236,1718454677184,-267.070013,0.00022739,7]
[329578237,1718454677225,-627.36,0.00022739,3]
[329578238,1718454677248,-500.0,0.00022739,3]
[329578239,1718454677268,-500.0,0.00022739,3]
[329578240,1718454677284,-153.64,0.00022739,3]
[329578241,1718454677316,-500.0,0.00022739,3]
[329578242,1718454677327,-500.0,0.00022739,3]
[329578243,1718454677345,-151.0,0.00022739,7]
[329578244,1718454677359,-500.0,0.00022739,3]
[329578245,1718454677398,-500.0,0.00022739,3]
[329578246,1718454677411,-500.0,0.00022739,3]
[329578247,1718454677423,-500.0,0.00022739,3]
[329578248,1718454677435,-500.0,0.00022739,3]
[329578249,1718454677450,-500.0,0.00022739,3]
[329578250,1718454677464,-568.383491,0.00022739,7]
[329578251,1718454677488,-151.0,0.00022739,7]
[329578252,1718454677516,-3633.47,0.00022749,2]
[329578253,1718454677528,-1500.0,0.000228,8]
[329578254,1718454677539,-3874.46383493,0.00022879,2]
[329578255,1718454677552,-175.01167186,0.000229,4]
[329578256,1718454677563,-553.56481586,0.000229,2]
[329578257,1718454677575,-169.07515286,0.000229,2]
[329578258,1718454677588,-3212.93577269,0.000229,2]
[329578259,1718454677604,-168.93400682,0.000229,2]
[329578260,1718454677616,-1900.0,0.000229,8]
[329578261,1718454677629,-211.74726363,0.0002299,2]
[329578262,1718454677644,-150.0,0.00022999,10]
[329578263,1718454677661,-150.0,0.00022999,10]
[329578264,1718454677680,-383896.96240996,0.00023,13]
[329578265,1718454677691,-5000.0,0.00023,2]
[329578266,1718454677703,-85019.95710739,0.00023,7]
[329578267,1718454677900,-355.72425126,0.00023,7]
[329578268,1718454678040,-500.0,0.00021917,2]
[329578269,1718454678052,-500.0,0.00022191,3]
[329578270,1718454678067,-568.383491,0.00022739,7]
[329578271,1718454678077,-4260.11346245,0.00023,7]
[329578272,1718454678113,-1083.001,0.00023,7]
[329578273,1718454678145,-69986.207102,0.00023,7]
[329578286,1718455633162,-193.29781389,0.00013598,2]
[329578287,1718455633208,-1406.3049,0.00013599,2]
[329578288,1718455633238,-300.0,0.00013697,2]
[329578289,1718455633297,-195.79238693,0.00013698,2]
[329578290,1718455633352,-158.39893901,0.00013698,2]
[329578291,1718455633405,-204.48055045,0.00013698,2]
[329578292,1718455633451,-910.52457817,0.00013698,2]
[329578293,1718455638204,-156.52373089,0.00013698,2]
[329578294,1718455639180,-300.66967882,0.00013698,2]
[329578307,1718455825935,6235.75,0.000181,10]
[329578322,1718455832560,-442.81,0.00012902,2]
[329578323,1718455832574,-160.0,0.00013537,2]
[329578324,1718455832585,-193.13287259,0.00013697,2]
[329578325,1718455832595,-2698.58885497,0.00013698,2]
[329578326,1718455832608,-1172.94215062,0.00013698,2]
[329578327,1718455832648,-50.39055312,0.00013698,2]
[329578328,1718455832660,-155.36770324,0.00013698,2]
[329578329,1718455832672,-94.24174364,0.00013699,2]
[329578330,1718455832800,-68.50024411,0.00013699,2]
[329578331,1718455832816,-366.07943095,0.00013699,2]
[329578332,1718455832846,-299.29433227,0.00013699,2]
[329578333,1718455832857,-2377.52880636,0.00013699,2]
[329578334,1718455832965,-284041.33320745,0.00013699,2]
[329578335,1718455832978,-33274.86079026,0.000137,2]
[329578336,1718455832992,-211725.13920974,0.000137,2]
[329578337,1718455833006,-1894.57640492,0.00013899,2]
[329578338,1718455833021,-261.62382088,0.00013899,2]
[329578339,1718455833034,-629.99914214,0.00013899,2]
[329578348,1718455833708,-1213.93749004,0.00013899,2]
[329578349,1718455833725,-334.61,0.00013899,2]
[329578350,1718455833761,-2311.26314202,0.00013899,2]
[329578351,1718455833777,-751.36855382,0.000139,2]
[329578352,1718455833796,-171.46657583,0.000139,2]
[329578353,1718455833811,-3743.49128444,0.000139,2]
[329578354,1718455833864,-630.5367656,0.000139,2]
[329578355,1718455833875,-169.07515286,0.000139,2]
[329578356,1718455833901,-368.36,0.000139,2]
[329578357,1718455833928,-151.89,0.0001399,2]
[329578358,1718455833964,-151.89,0.0001399,2]
[329578359,1718455834007,-151.89,0.0001399,2]
[329578360,1718455834017,-151.89,0.0001399,2]
[329578361,1718455834040,-151.89,0.0001399,2]
[329578362,1718455834057,-151.89,0.0001399,2]
[329578363,1718455834080,-151.89,0.0001399,2]
[329578364,1718455834105,-151.89,0.0001399,2]
[329578365,1718455834129,-151.89,0.0001399,2]
[329578366,1718455834141,-175.81918872,0.00013997,2]
[329578367,1718455834153,-7437.33639892,0.00013999,2]
[329578384,1718455843599,-166494.1129,0.00013599,2]
[329578385,1718455843628,-369.04321056,0.00013997,2]
[329578386,1718455843658,-40654.48533744,0.00013999,2]
[329578387,1718455843674,-1275.15327242,0.00013999,2]
[329578388,1718455843708,-11353.05974957,0.00013999,2]
[329578389,1718455844021,-6985.61950846,0.00013999,2]
[329578390,1718455844054,-250.39418971,0.00013999,2]
[329578391,1718455844069,-1002.87945406,0.00013999,2]
[329578392,1718455844085,-6952.55309619,0.00013999,2]
[329578393,1718455844108,-29665.44899323,0.00013999,2]
[329578394,1718455844169,-499.99,0.00013999,2]
[329578395,1718455844209,-2725.73,0.00013999,2]
[329578396,1718455844232,-1060.97100677,0.00014,2]
[329578397,1718455844257,-458596.03435068,0.00014,2]
[329578398,1718455844345,-442.99999994,0.00014,2]
[329578399,1718455844364,-1212.14956,0.00014,2]
[329578400,1718455844424,-6793.24879637,0.00014,2]
[329578401,1718455844486,-2837.55534816,0.00014,2]
[329578402,1718455844503,-4470.90884912,0.00014,2]
[329578403,1718455844522,-5641.70032621,0.00014,2]
[329578404,1718455844536,-4069.7644186,0.00014,2]
[329578405,1718455844554,-710.733,0.00014,2]
[329578406,1718455844571,-549847.02374033,0.00014,2]
[329578407,1718455844824,-3218.69297135,0.00014,2]
[329578408,1718455844848,-1596.30903577,0.00014,2]
[329578409,1718455844871,-6697.84166771,0.00014,2]
[329578410,1718455844913,-218018.60232065,0.00014,2]
[329578411,1718455845017,-10287.06687749,0.00014,2]
[329578412,1718455845042,-536.93965553,0.00014,2]
[329578414,1718455845532,-677.98189683,0.00014,2]
[329578417,1718455845585,-578.32706232,0.00014,2]
[329578420,1718455845616,-1058.55765,0.00014,2]
[329578424,1718455845716,-6561.17940955,0.00014,2]
[329578425,1718455845732,-2796.05999973,0.00014,2]
[329578439,1718455845999,-109760.61419552,0.00014,2]
[329578452,1718455846150,-1890.08672216,0.00014,2]
[329578454,1718455846178,-531.72,0.00014,2]
[329578476,1718455846476,-147539.19962818,0.00014,2]
[329578483,1718455846596,-228869.57621506,0.00014,2]
[329578488,1718455846659,-393.29106466,0.00014,2]
[329578491,1718455846678,-2311.46056864,0.00014,2]
[329578493,1718455846729,-303.78677249,0.00014,2]
[329578496,1718455846758,-15904.08780445,0.00014,2]
[329578501,1718455846796,-1515.86536792,0.00014,2]
[329578505,1718455846833,-842.89242602,0.00014,2]
[329578507,1718455846851,-1508.7644094,0.00014,2]
[329578509,1718455846902,-1032.75,0.00014,2]
[329578572,1718455848017,-1549.49966295,0.00014,2]
[329578601,1718455848637,-2141.9571818,0.00013997,2]
[329578602,1718455848649,-9214.35515325,0.00014,2]
[329578603,1718455848667,-255.58512387,0.00014,2]
[329578613,1718455848827,-2841.01794751,0.00014,2]
[329578615,1718455848841,-4071.3950287,0.00014,2]
[329578894,1718456430773,325.77,0.00011,2]
[329578896,1718456763186,312.1096434,0.00025,30]
[329578897,1718456825298,-439.61,0.00011328,2]
[329578898,1718456825356,-344.47,0.00012994,2]
[329578899,1718456825392,-164.41,0.00013146,2]
[329578900,1718456825423,-1000.0,0.00013224,2]
[329578901,1718456825465,-686.95,0.0001325,2]
[329578902,1718456825510,-1361.3715901,0.00013269,2]
[329578903,1718456843212,-1524.63538104,0.00013269,2]
[329578904,1718456853155,-1827.80156656,0.00013394,2]
[329578942,1718456961120,-250.0,0.00013066,2]
[329578943,1718456961159,-250.0,0.00013194,2]
[329578944,1718456961212,-348.95748955,0.00013384,2]
[329578945,1718456961283,-150.0,0.00013393,2]
[329578946,1718456962859,-0.04251045,0.00013393,2]
[329578961,1718456995756,-1000.0,0.000137,5]
[329578966,1718457034252,-149.95748955,0.00013393,2]
[329578967,1718457034298,-150.0,0.00013393,2]
[329578968,1718457034337,-150.0,0.00013393,2]
[329578969,1718457034381,-10251.40251046,0.00013394,2]
[329578970,1718457034540,-55924.56251505,0.00013394,2]
[329578971,1718457034553,-9778.81,0.00013483,2]
[329578972,1718457034565,-1511.16,0.00013483,2]
[329578973,1718457034576,-439.61,0.00013592,2]
[329578974,1718457034588,-18975.74204427,0.00013598,2]
[329578975,1718457034602,-163.8,0.00013598,2]
[329578976,1718457034621,-303.96,0.00013599,2]
[329578977,1718457034633,-4226.6,0.00013599,2]
[329578978,1718457034664,-3058.14,0.00013599,2]
[329578979,1718457034691,-5133.203,0.00013599,2]
[329578980,1718457034704,-800.0,0.000136,4]
[329578981,1718457034717,-499.99,0.000136,2]
[329578982,1718457034729,-2751.0,0.00013699,2]
[329578983,1718457034740,-174.8,0.00013699,2]
[329578984,1718457034756,-200.0,0.00013699,2]
[329578985,1718457034771,-469.4,0.00013699,2]
[329578986,1718457034808,-700.0,0.000137,5]
[329578989,1718457034829,-7152.98,0.000137,2]
[329578992,1718457034881,-383.42204089,0.00013766,2]
[329578994,1718457034917,-2500.0,0.000138,5]
[329578996,1718457034928,-202.70403289,0.00013829,2]
[329578998,1718457034941,-611.8,0.00013867,2]
[329579000,1718457034952,-787.9302,0.000139,2]
[329579001,1718457034965,-5962.0514,0.000139,2]
[329579003,1718457034976,-3921.41862079,0.000139,2]
[329579005,1718457035041,-379.0188,0.000139,2]
[329579007,1718457035060,-3400.0,0.000139,5]
[329579008,1718457035077,-343.04939925,0.000139,2]
[329579010,1718457035104,-330.85478835,0.000139,2]
[329579012,1718457035132,-179.39771079,0.000139,2]
[329579014,1718457035152,-180.40976621,0.000139,2]
[329579017,1718457035167,-3975.4548,0.00013973,2]
[329579020,1718457035208,-1785.20231721,0.00013986,2]
[329579022,1718457035222,-152.16,0.0001399,2]
[329579024,1718457035260,-165.17737501,0.0001399,2]
[329579027,1718457035326,-152.16,0.0001399,2]
[329579029,1718457035340,-152.16,0.0001399,2]
[329579030,1718457035352,-162.78459659,0.00013997,2]
[329579032,1718457035368,-155.60039783,0.00013998,2]
[329579034,1718457035382,-2559.96948321,0.00013998,2]
[329579036,1718457035393,-335.72685915,0.00013998,2]
[329579038,1718457035412,-155.0,0.00013998,2]
[329579040,1718457035430,-204.99679615,0.00013998,2]
[329579042,1718457035447,-155.25360211,0.00013998,2]
[329579043,1718457035458,-255.91381025,0.00013998,2]
[329579045,1718457035476,-3025.46383307,0.00013998,2]
[329579046,1718457035489,-435.98926893,0.00013998,2]
[329579048,1718457035501,-4479.24610841,0.00013998,2]
[329579050,1718457035518,-156.06062779,0.00013998,2]
[329579051,1718457035551,-155.47029132,0.00013998,2]
[329579053,1718457035563,-205.8241592,0.00013998,2]
[329579054,1718457035584,-242.67952649,0.00013998,2]
[329579057,1718457035599,-1710.79122942,0.00013998,2]
[329579059,1718457035611,-1607.21613717,0.00013998,2]
[329579062,1718457035643,-204.03400987,0.00013998,2]
[329579064,1718457035669,-193.13213728,0.00013998,2]
[329579066,1718457035696,-544.65639327,0.00013999,2]
[329579068,1718457035718,-179.52305464,0.00013999,2]
[329579071,1718457035756,-507.4877379,0.00013999,2]
[329579072,1718457035771,-645.50901128,0.00013999,2]
[329579074,1718457035797,-228700.67983234,0.00014,2]
[329579256,1718457039520,-445.4892,0.00014,2]
[329579272,1718457039782,-458596.03435068,0.00014,2]
[329579308,1718457040621,-999.0,0.00014,2]
[329579323,1718457041005,-17089.45892,0.00014,2]
[329579339,1718457041289,-345.0,0.00014,2]
[329579349,1718457041507,-204587.09188814,0.00014,2]
[329579469,1718457044035,-516.49838722,0.00014,2]
[329579499,1718457044625,-79937.29555196,0.00014,2]
[329579512,1718457044885,-3602.739721,0.00014,2]
[329579630,1718457047301,-1960.56110232,0.00014,2]
[329579634,1718457047333,-257.4949639,0.00014,2]
[329579881,1718457053791,-752039.89896047,0.00014,2]
[329579888,1718457053900,-7459.87972639,0.00014,2]
[329579894,1718457054145,-2800.0,0.00014,2]
[329579897,1718457054189,-28860.47167821,0.00014,2]
[329579918,1718457054717,-3007.43990326,0.00014,2]
[329579919,1718457054923,-700.39126799,0.00014,2]
[329579920,1718457054940,-649828.89390956,0.00014,2]
[329579921,1718457054956,-160.92330524,0.00014,2]
[329579922,1718457054981,-1692.0202568,0.00014,2]
[329579923,1718457055004,-1363.84442501,0.00014,2]
[329579924,1718457055036,-9339.06716509,0.00014,2]
[329579925,1718457055047,-174.8,0.00014612,2]
[329579926,1718457055096,-210.0,0.00014732,2]
[329579927,1718457055122,-1000.0,0.00014877,2]
[329579928,1718457055137,-155.0,0.00015,2]
[329579929,1718457055154,-3959.95580288,0.00015,2]
[329579930,1718457055190,-620.85616807,0.00015,2]
[329579931,1718457055222,-3492.0,0.00015025,2]
[329579932,1718457055234,-150.0,0.00015068,2]
[329579933,1718457055254,-3921.41862075,0.00015152,2]
[329579934,1718457055273,-174.8,0.00015525,2]
[329579935,1718457055288,-439.61,0.00015855,2]
[329579936,1718457055307,-551.0,0.000159,2]
[329579937,1718457055321,-442.0,0.00016402,2]
[329579938,1718457055338,-346.065,0.00016402,2]
[329579939,1718457055354,-722.664,0.00016402,2]
[329579940,1718457055366,-681.177,0.00016402,2]
[329579941,1718457055383,-1968.0,0.00016402,2]
[329579942,1718457055396,-546.0,0.00016402,2]
[329579943,1718457055410,-3921.41862075,0.00016404,2]
[329579944,1718457055434,-174.8,0.00016438,2]
[329579945,1718457055455,-1808.03095238,0.000165,2]
[329579946,1718457055467,-1000.0,0.0001653,2]
[329579947,1718457055493,-175.01167186,0.00016541,2]
[329579949,1718457055547,-5160.0,0.00016641,2]
[329579951,1718457055575,-290.0,0.00016641,2]
[329579953,1718457055617,-1195.0,0.00016641,2]
[329579954,1718457055634,-1067.0,0.00016641,2]
[329579956,1718457055665,-804.0,0.000168,2]
[329579958,1718457055692,-3595.0,0.000168,2]
[329579959,1718457055720,-168.93400681,0.000169,2]
[329579960,1718457055734,-1271.378,0.00017602,2]
[329579962,1718457055769,-192.906,0.00017602,2]
[329579964,1718457055785,-616.0,0.00017602,2]
[329579965,1718457055803,-811.0,0.00017602,2]
[329579966,1718457055822,-1652.0,0.00017602,2]
[329579967,1718457055859,-3921.41862075,0.00017655,2]
[329579968,1718457055872,-649.43721582,0.00018,2]
[329579969,1718457055891,-200.0,0.000181,2]
[329579970,1718457055929,-439.61,0.00018119,2]
[329579971,1718457055960,-1000.0,0.00018183,2]
[329579972,1718457055981,-200.0,0.00018281,2]
[329579973,1718457055995,-200.0,0.00018464,2]
[329579974,1718457056010,-200.0,0.00018648,2]
[329579975,1718457056021,-200.0,0.00018835,2]
[329579976,1718457056043,-3921.41862075,0.00018907,2]
[329579977,1718457056057,-165.44645123,0.00019178,2]
[329579978,1718457056089,-446.16216842,0.00019178,2]
[329579979,1718457056104,-500.0,0.00019178,2]
[329579980,1718457056115,-500.0,0.00019178,2]
[329579981,1718457056126,-500.0,0.00019178,2]
[329579982,1718457056143,-500.0,0.00019178,2]
[329579983,1718457056155,-590.66022021,0.00019178,2]
[329579984,1718457056169,-500.0,0.00019178,2]
[329579985,1718457056181,-419.25026882,0.00019178,2]
[329579986,1718457056192,-469.4,0.00019178,2]
[329579987,1718457056203,-442.0,0.00019402,2]
[329579988,1718457056214,-546.0,0.00019402,2]
[329579989,1718457056230,-206.0,0.0001958,15]
[329579990,1718457056243,-219.35,0.0001958,15]
[329579991,1718457056304,-150.5,0.0001959,15]
[329579992,1718457056331,-150.5,0.0001959,15]
[329579993,1718457056380,-1068.689,0.00019641,2]
[329579994,1718457056414,-232.291,0.00019641,2]
[329579995,1718457056434,-1184.036,0.00019641,2]
[329579996,1718457056447,-1067.0,0.00019641,2]
[329579997,1718457056463,-1000.0,0.00019836,2]
[329579998,1718457056485,-399.52266653,0.0002,2]
[329579999,1718457056504,-155.0,0.0002,2]
[329580000,1718457056516,-189.7696383,0.0002,2]
[329580001,1718457056531,-187.74893441,0.0002,2]
[329580002,1718457056558,-6269.45372724,0.0002,2]
[329580003,1718457056569,-3897.73390955,0.0002,2]
[329580006,1718457056592,-865.86350875,0.0002,2]
[329580008,1718457056603,-1017.83777918,0.0002,2]
[329580010,1718457056625,-255.24633804,0.0002,2]
[329580012,1718457056656,-160.43667704,0.0002,2]
[329580013,1718457056689,-11878.41426193,0.0002,2]
[329580014,1718457056733,-226.79813277,0.000201,2]
[329580015,1718457056745,-3921.41862075,0.00020159,2]
[329580016,1718457056757,-439.61,0.00020383,2]
[329580017,1718457056769,-165.0,0.00020602,2]
[329580018,1718457056784,-616.0,0.00020602,2]
[329580019,1718457056822,-811.0,0.00020602,2]
[329580020,1718457056837,-1652.0,0.00020602,2]
[329580021,1718457056858,-11833.59454646,0.000207,2]
[329580022,1718457056879,-1250.0,0.00021,2]
[329580023,1718457056893,-851.72,0.00021202,2]
[329580024,1718457056920,-417.85,0.00021202,2]
[329580025,1718457056949,-417.85,0.00021202,2]
[329580026,1718457056991,-851.72,0.00021202,2]
[329580027,1718457057009,-151.9,0.00021202,2]
[329580028,1718457057023,-851.72,0.00021202,2]
[329580029,1718457057040,-851.72,0.00021202,2]
[329580030,1718457057085,-851.72,0.00021202,2]
[329580031,1718457057124,-3921.41862075,0.00021411,2]
[329580032,1718457057139,-355.0,0.000216,2]
[329580033,1718457057170,-1000.0,0.000216,2]
[329580034,1718457057188,-672.0,0.000216,2]
[329580035,1718457057200,-9279.1516,0.00021817,2]
[329580036,1718457057212,-1000.0,0.00021817,2]
[329580037,1718457057238,-152.16,0.00021907,2]
[329580038,1718457057266,-500.0,0.00021917,2]
[329580039,1718457057291,-502.27144762,0.00021917,2]
[329580040,1718457057322,-555.1273593,0.00021917,2]
[329580041,1718457057339,-500.0,0.00021917,2]
[329580043,1718457057366,-501.57414411,0.00021917,2]
[329580045,1718457057384,-500.49134274,0.00021917,2]
[329580046,1718457057609,-502.75411094,0.00021917,2]
[329580047,1718457057622,-257.25996566,0.00021917,2]
[329580048,1718457057636,-627.8365504,0.00021917,2]
[329580049,1718457057656,-200.8586783,0.00021917,2]
[329580050,1718457057679,-519.13787257,0.00021917,2]
[329580051,1718457057714,-500.0,0.00021917,2]
[329580052,1718457057732,-510.12199306,0.00021917,2]
[329580053,1718457057765,-519.19582435,0.00021917,2]
[329580054,1718457057777,-506.66644931,0.00021917,2]
[329580055,1718457057790,-502.68487363,0.00021917,2]
[329580056,1718457057807,-501.81940929,0.00021917,2]
[329580057,1718457057819,-513.62714134,0.00021917,2]
[329580058,1718457057836,-506.1085359,0.00021917,2]
[329580059,1718457057850,-504.44275395,0.00021917,2]
[329580060,1718457057863,-507.32275242,0.00021917,2]
[329580061,1718457057877,-539.54455133,0.00021917,2]
[329580062,1718457057909,-503.28106605,0.00021917,2]
[329580063,1718457057922,-393.73991869,0.00021917,2]
[329580064,1718457057957,-504.44094449,0.00021917,2]
[329580065,1718457057974,-508.16903095,0.00021917,2]
[329580066,1718457058017,-507.8838956,0.00021917,2]
[329580067,1718457058033,-300.36701674,0.00021917,2]
[329580068,1718457058055,-500.0,0.00021917,2]
[329580069,1718457058072,-500.0,0.00021917,2]
[329580070,1718457058083,-501.03543973,0.00021917,2]
[329580071,1718457058098,-500.0,0.00021917,2]
[329580072,1718457058124,-500.0,0.00021917,2]
[329580073,1718457058157,-500.0,0.00021917,2]
[329580074,1718457058185,-500.0,0.00021917,2]
[329580075,1718457058196,-500.0,0.00021917,2]
[329580076,1718457058220,-500.0,0.00021917,2]
[329580077,1718457058234,-500.0,0.00021917,2]
[329580078,1718457058246,-578.57611845,0.00021917,2]
[329580079,1718457058263,-555.89582165,0.00021917,2]
[329580080,1718457058285,-500.0,0.00021917,2]
[329580081,1718457058312,-500.0,0.00021917,2]
[329580082,1718457058363,-500.0,0.00021917,2]
[329580083,1718457058382,-397.57930983,0.00021917,2]
[329580084,1718457058397,-195.5702395,0.00021917,2]
[329580085,1718457058416,-500.0,0.00021917,2]
[329580086,1718457058440,-500.0,0.00021917,2]
[329580087,1718457058487,-500.0,0.00021917,2]
[329580088,1718457058502,-500.0,0.00021917,2]
[329580089,1718457058520,-500.0,0.00021917,2]
[329580090,1718457058556,-370.91940214,0.00021917,2]
[329580091,1718457058569,-500.0,0.00021917,2]
[329580092,1718457058581,-1240.91,0.00021917,2]
[329580093,1718457058592,-500.0,0.00021917,2]
[329580094,1718457058610,-500.0,0.00021917,2]
[329580095,1718457058640,-500.0,0.00021917,2]
[329580096,1718457058652,-500.0,0.00021917,2]
[329580097,1718457058671,-500.0,0.00021917,2]
[329580098,1718457058686,-500.0,0.00021917,2]
[329580099,1718457058711,-500.0,0.00021917,2]
[329580100,1718457058739,-500.0,0.00021917,2]
[329580101,1718457058750,-199.58004,0.00021917,2]
[329580102,1718457058778,-500.0,0.00021917,2]
[329580103,1718457058793,-199.58004,0.00021917,2]
[329580104,1718457058814,-500.0,0.00021917,2]
[329580105,1718457058825,-500.0,0.00021917,2]
[329580106,1718457058843,-500.0,0.00021917,2]
[329580107,1718457058874,-500.0,0.00021917,2]
[329580108,1718457058891,-500.0,0.00021917,2]
[329580109,1718457058905,-500.0,0.00021917,2]
[329580110,1718457058921,-500.0,0.00021917,2]
[329580111,1718457058944,-637.98397908,0.00021917,2]
[329580112,1718457058955,-500.0,0.00021917,2]
[329580113,1718457058966,-500.0,0.00021917,2]
[329580114,1718457058981,-607.00860411,0.00021917,2]
[329580115,1718457058996,-500.0,0.00021917,2]
[329580116,1718457059007,-500.0,0.00021917,2]
[329580117,1718457059032,-500.0,0.00021917,2]
[329580118,1718457059044,-500.0,0.00021917,2]
[329580119,1718457059058,-500.0,0.00021917,2]
[329580120,1718457059073,-230.03345398,0.00021917,2]
[329580121,1718457059094,-500.0,0.00021917,2]
[329580122,1718457059112,-500.0,0.00021917,2]
[329580123,1718457059128,-648.66,0.00021917,2]
[329580124,1718457059140,-500.0,0.00021917,2]
[329580125,1718457059156,-500.0,0.00021917,2]
[329580126,1718457059183,-426.97262755,0.00021917,2]
[329580127,1718457059196,-500.0,0.00021917,2]
[329580128,1718457059212,-500.0,0.00021917,2]
[329580129,1718457059236,-500.0,0.00021917,2]
[329580130,1718457059254,-500.0,0.00021917,2]
[329580131,1718457059298,-500.0,0.00021917,2]
[329580132,1718457059320,-500.0,0.00021917,2]
[329580133,1718457059341,-500.0,0.00021917,2]
[329580134,1718457059359,-500.0,0.00021917,2]
[329580135,1718457059372,-500.0,0.00021917,2]
[329580136,1718457059385,-500.0,0.00021917,2]
[329580137,1718457059396,-500.0,0.00021917,2]
[329580138,1718457059409,-624.64,0.00021917,2]
[329580139,1718457059424,-640.49466947,0.00021917,2]
[329580140,1718457059452,-500.0,0.00021917,2]
[329580141,1718457059476,-500.0,0.00021917,2]
[329580142,1718457059507,-500.0,0.00021917,2]
[329580143,1718457059523,-500.0,0.00021917,2]
[329580144,1718457059577,-255.00554659,0.00021917,2]
[329580145,1718457059594,-500.0,0.00021917,2]
[329580146,1718457059609,-500.0,0.00021917,2]
[329580147,1718457059637,-500.0,0.00021917,2]
[329580148,1718457059656,-500.0,0.00021917,2]
[329580149,1718457059672,-500.0,0.00021917,2]
[329580150,1718457059688,-500.0,0.00021917,2]
[329580151,1718457059701,-500.0,0.00021917,2]
[329580152,1718457059714,-500.0,0.00021917,2]
[329580153,1718457059725,-500.0,0.00021917,2]
[329580154,1718457059740,-500.0,0.00021917,2]
[329580155,1718457059754,-500.0,0.00021917,2]
[329580156,1718457059766,-500.0,0.00021917,2]
[329580157,1718457059788,-500.0,0.00021917,2]
[329580158,1718457059803,-500.0,0.00021917,2]
[329580159,1718457059827,-500.0,0.00021917,2]
[329580160,1718457059844,-500.0,0.00021917,2]
[329580161,1718457059857,-500.0,0.00021917,2]
[329580162,1718457059869,-500.0,0.00021917,2]
[329580163,1718457059884,-500.0,0.00021917,2]
[329580164,1718457059910,-500.0,0.00021917,2]
[329580165,1718457059938,-500.0,0.00021917,2]
[329580166,1718457059964,-500.0,0.00021917,2]